[Event "Titled Tuesday Blitz March 01 Late 2022"]
[White "Goryachkina, Aleksandra"]
[Black "Janturin, Artur"]
[WhiteFideId "4147103"]
[BlackFideId "4130022"]
[WhiteElo "2426"]
[BlackElo "2331"]
[Result "1-0"]
[Round "02"]
[TimeControl "180+1"]
[Date "2022.03.02"]
[WhiteClock "0:00:41"]
[BlackClock "0:00:07"]

1. e4 {[%clk 0:03:00]}  e6 {[%clk 0:02:59]} 2. d4 {[%clk 0:02:59]}  d5 {[%clk 0:02:59]} 3. Nd2 {[%clk 0:03:00]}  dxe4 {[%clk 0:02:58]} 4. Nxe4 {[%clk 0:02:59]}  Nd7 {[%clk 0:02:58]} 5. g3 {[%clk 0:02:55]}  Ngf6 {[%clk 0:02:58]} 6. Nxf6+ {[%clk 0:02:55]}  Nxf6 {[%clk 0:02:57]} 7. Bg2 {[%clk 0:02:55]}  c5 {[%clk 0:02:55]} 8. Nf3 {[%clk 0:02:55]}  Be7 {[%clk 0:02:42]} 9. O-O {[%clk 0:02:54]}  O-O {[%clk 0:02:41]} 10. c4 {[%clk 0:02:48]}  Bd7 {[%clk 0:02:00]} 11. Ne5 {[%clk 0:02:45]}  Qc8 {[%clk 0:02:00]} 12. dxc5 {[%clk 0:02:37]}  Bxc5 {[%clk 0:01:58]} 13. Bg5 {[%clk 0:02:36]}  Rd8 {[%clk 0:01:54]} 14. Bxf6 {[%clk 0:02:12]}  gxf6 {[%clk 0:01:53]} 15. Qg4+ {[%clk 0:02:10]}  Kf8 {[%clk 0:01:53]} 16. Nd3 {[%clk 0:01:55]}  Be7 {[%clk 0:01:35]} 17. Qh4 {[%clk 0:01:50]}  f5 {[%clk 0:00:54]} 18. Qxh7 {[%clk 0:01:49]}  Bf6 {[%clk 0:00:54]} 19. Nf4 {[%clk 0:01:43]}  Qxc4 {[%clk 0:00:29]} 20. Rac1 {[%clk 0:01:22]}  Qb4 {[%clk 0:00:24]} 21. Rc7 {[%clk 0:01:20]}  Qxb2 {[%clk 0:00:19]} 22. Rxb7 {[%clk 0:01:09]}  Qd4 {[%clk 0:00:18]} 23. Nh5 {[%clk 0:01:02]}  Be5 {[%clk 0:00:07]} 24. Qh6+ {[%clk 0:00:46]}  Ke7 {[%clk 0:00:07]} 25. Qg5+ {[%clk 0:00:45]}  Bf6 {[%clk 0:00:06]} 26. Nxf6 {[%clk 0:00:42]}  Qxf6 {[%clk 0:00:07]} 27. Rxd7+ {[%clk 0:00:41]} 1-0


[Site "https://www.chess.com"]

[Event "Titled Tuesday Blitz March 01 Late 2022"]
[White "Gracia Alvarez, Gerardo Antonio"]
[Black "Curtis, John"]
[WhiteFideId "5109124"]
[BlackFideId "3200256"]
[WhiteElo "2139"]
[BlackElo "2203"]
[Result "1-0"]
[Round "02"]
[TimeControl "180+1"]
[Date "2022.03.02"]
[WhiteClock "0:00:15"]
[BlackClock "0:00:37"]

1. e4 {[%clk 0:02:59]}  e5 {[%clk 0:02:59]} 2. Nc3 {[%clk 0:02:59]}  Nc6 {[%clk 0:03:00]} 3. Bc4 {[%clk 0:02:57]}  Bc5 {[%clk 0:03:00]} 4. Qg4 {[%clk 0:02:55]}  Kf8 {[%clk 0:02:59]} 5. Qf3 {[%clk 0:02:47]}  Nf6 {[%clk 0:02:58]} 6. Nge2 {[%clk 0:02:46]}  Nd4 {[%clk 0:02:52]} 7. Nxd4 {[%clk 0:02:44]}  exd4 {[%clk 0:02:52]} 8. Nd5 {[%clk 0:02:43]}  Nxd5 {[%clk 0:02:49]} 9. Bxd5 {[%clk 0:02:43]}  Qf6 {[%clk 0:02:49]} 10. Qxf6 {[%clk 0:02:43]}  gxf6 {[%clk 0:02:49]} 11. d3 {[%clk 0:02:42]}  d6 {[%clk 0:02:48]} 12. Bh6+ {[%clk 0:02:40]}  Ke7 {[%clk 0:02:47]} 13. O-O {[%clk 0:02:32]}  c6 {[%clk 0:02:44]} 14. Bb3 {[%clk 0:02:32]}  Rg8 {[%clk 0:02:40]} 15. Bf4 {[%clk 0:02:24]}  Be6 {[%clk 0:02:37]} 16. Bg3 {[%clk 0:02:18]}  Rg6 {[%clk 0:02:34]} 17. f4 {[%clk 0:02:16]}  f5 {[%clk 0:02:33]} 18. Rae1 {[%clk 0:02:12]}  Kf8 {[%clk 0:02:22]} 19. Bh4 {[%clk 0:01:54]}  Re8 {[%clk 0:02:03]} 20. exf5 {[%clk 0:01:52]}  Bxf5 {[%clk 0:01:59]} 21. Rxe8+ {[%clk 0:01:52]}  Kxe8 {[%clk 0:01:58]} 22. Re1+ {[%clk 0:01:52]}  Kf8 {[%clk 0:01:54]} 23. Re7 {[%clk 0:01:42]}  d5 {[%clk 0:01:48]} 24. Rxb7 {[%clk 0:01:40]}  h6 {[%clk 0:01:35]} 25. a4 {[%clk 0:01:21]}  Rg4 {[%clk 0:01:29]} 26. g3 {[%clk 0:01:20]}  Rg6 {[%clk 0:01:25]} 27. a5 {[%clk 0:01:14]}  Re6 {[%clk 0:01:23]} 28. a6 {[%clk 0:00:59]}  Kg7 {[%clk 0:01:14]} 29. Ba4 {[%clk 0:00:57]}  Bg4 {[%clk 0:01:02]} 30. b4 {[%clk 0:00:52]}  Bd6 {[%clk 0:00:58]} 31. Bxc6 {[%clk 0:00:35]}  Bxf4 {[%clk 0:00:57]} 32. Bxd5 {[%clk 0:00:34]}  Re1+ {[%clk 0:00:55]} 33. Kf2 {[%clk 0:00:32]}  Re2+ {[%clk 0:00:55]} 34. Kf1 {[%clk 0:00:32]}  Be3 {[%clk 0:00:53]} 35. Rxf7+ {[%clk 0:00:31]}  Kg6 {[%clk 0:00:52]} 36. Rf6+ {[%clk 0:00:26]}  Kg7 {[%clk 0:00:52]} 37. Rf7+ {[%clk 0:00:25]}  Kg6 {[%clk 0:00:51]} 38. Rf6+ {[%clk 0:00:21]}  Kg7 {[%clk 0:00:51]} 39. Be4 {[%clk 0:00:19]}  Rf2+ {[%clk 0:00:46]} 40. Rxf2 {[%clk 0:00:19]}  Bd1 {[%clk 0:00:44]} 41. Bf6+ {[%clk 0:00:17]}  Kf7 {[%clk 0:00:43]} 42. Bxd4+ {[%clk 0:00:16]}  Bxf2 {[%clk 0:00:42]} 43. Bxf2 {[%clk 0:00:16]}  Bxc2 {[%clk 0:00:42]} 44. Bxa7 {[%clk 0:00:17]}  Ba4 {[%clk 0:00:42]} 45. Bc5 {[%clk 0:00:16]}  Bc6 {[%clk 0:00:37]} 46. Bxc6 {[%clk 0:00:15]} 1-0


[Site "https://www.chess.com"]

[Event "Titled Tuesday Blitz March 01 Late 2022"]
[White "Gulecyuz, Deniz"]
[Black "Harvey, Marcus R"]
[WhiteFideId "30921341"]
[BlackFideId "400092"]
[WhiteElo "1925"]
[BlackElo "2485"]
[Result "0-1"]
[Round "02"]
[TimeControl "180+1"]
[Date "2022.03.02"]
[WhiteClock "0:00:15"]
[BlackClock "0:00:51"]

1. e4 {[%clk 0:02:57]}  c6 {[%clk 0:03:00]} 2. d4 {[%clk 0:02:57]}  d5 {[%clk 0:03:00]} 3. e5 {[%clk 0:02:58]}  Bf5 {[%clk 0:02:59]} 4. Nf3 {[%clk 0:02:58]}  e6 {[%clk 0:02:58]} 5. Be2 {[%clk 0:02:59]}  c5 {[%clk 0:02:58]} 6. c3 {[%clk 0:02:54]}  Nc6 {[%clk 0:02:58]} 7. O-O {[%clk 0:02:53]}  cxd4 {[%clk 0:02:58]} 8. cxd4 {[%clk 0:02:53]}  h6 {[%clk 0:02:54]} 9. Nc3 {[%clk 0:02:48]}  Nge7 {[%clk 0:02:51]} 10. Be3 {[%clk 0:02:36]}  Bh7 {[%clk 0:02:50]} 11. Rc1 {[%clk 0:02:21]}  Nf5 {[%clk 0:02:46]} 12. a3 {[%clk 0:02:19]}  Be7 {[%clk 0:02:43]} 13. b4 {[%clk 0:02:19]}  O-O {[%clk 0:02:39]} 14. Qd2 {[%clk 0:02:04]}  Rc8 {[%clk 0:02:36]} 15. Na4 {[%clk 0:01:57]}  Nxe3 {[%clk 0:02:32]} 16. fxe3 {[%clk 0:01:57]}  Nb8 {[%clk 0:02:14]} 17. Nc5 {[%clk 0:01:55]}  b6 {[%clk 0:02:12]} 18. Nd3 {[%clk 0:01:36]}  Qd7 {[%clk 0:02:08]} 19. Nf4 {[%clk 0:01:32]}  Qa4 {[%clk 0:02:03]} 20. Qb2 {[%clk 0:01:24]}  a5 {[%clk 0:01:45]} 21. Bd1 {[%clk 0:01:06]}  Qb5 {[%clk 0:01:44]} 22. Be2 {[%clk 0:01:00]}  Qa4 {[%clk 0:01:45]} 23. Bd1 {[%clk 0:00:57]}  Qd7 {[%clk 0:01:45]} 24. Be2 {[%clk 0:00:40]}  axb4 {[%clk 0:01:34]} 25. axb4 {[%clk 0:00:41]}  Qa4 {[%clk 0:01:34]} 26. Rxc8 {[%clk 0:00:25]}  Rxc8 {[%clk 0:01:35]} 27. b5 {[%clk 0:00:25]}  g5 {[%clk 0:01:22]} 28. Rc1 {[%clk 0:00:14]}  Rxc1+ {[%clk 0:01:18]} 29. Qxc1 {[%clk 0:00:15]}  gxf4 {[%clk 0:01:09]} 30. Qc8+ {[%clk 0:00:15]}  Kg7 {[%clk 0:01:10]} 31. exf4 {[%clk 0:00:12]}  Qc2 {[%clk 0:01:06]} 32. Qxc2 {[%clk 0:00:11]}  Bxc2 {[%clk 0:01:07]} 33. Kf2 {[%clk 0:00:11]}  Nd7 {[%clk 0:01:02]} 34. Ke3 {[%clk 0:00:11]}  Bb4 {[%clk 0:00:57]} 35. g4 {[%clk 0:00:11]}  Nf8 {[%clk 0:00:55]} 36. f5 {[%clk 0:00:12]}  exf5 {[%clk 0:00:55]} 37. gxf5 {[%clk 0:00:13]}  Bxf5 {[%clk 0:00:54]} 38. Kf4 {[%clk 0:00:13]}  Be4 {[%clk 0:00:53]} 39. Ke3 {[%clk 0:00:13]}  Ne6 {[%clk 0:00:53]} 40. Nd2 {[%clk 0:00:13]}  Bxd2+ {[%clk 0:00:52]} 41. Kxd2 {[%clk 0:00:14]}  Nxd4 {[%clk 0:00:53]} 42. Bf1 {[%clk 0:00:14]}  Nf3+ {[%clk 0:00:52]} 43. Ke3 {[%clk 0:00:15]}  Nxh2 {[%clk 0:00:51]} 0-1


[Site "https://www.chess.com"]

[Event "Titled Tuesday Blitz March 01 Late 2022"]
[White "Guseinov, Gadir"]
[Black "Mardov, Dimitar"]
[WhiteFideId "13401378"]
[BlackFideId "30919495"]
[WhiteElo "2581"]
[BlackElo "2185"]
[Result "1-0"]
[Round "02"]
[TimeControl "180+1"]
[Date "2022.03.01"]
[WhiteClock "0:00:04"]
[BlackClock "0:00:04"]

1. e4 {[%clk 0:03:00]}  c5 {[%clk 0:02:58]} 2. Nc3 {[%clk 0:02:57]}  Nc6 {[%clk 0:02:53]} 3. Bb5 {[%clk 0:02:55]}  Nd4 {[%clk 0:02:52]} 4. Nf3 {[%clk 0:02:50]}  Nxb5 {[%clk 0:02:50]} 5. Nxb5 {[%clk 0:02:49]}  a6 {[%clk 0:02:49]} 6. Nc3 {[%clk 0:02:49]}  d6 {[%clk 0:02:48]} 7. d4 {[%clk 0:02:49]}  cxd4 {[%clk 0:02:49]} 8. Qxd4 {[%clk 0:02:49]}  Nf6 {[%clk 0:02:47]} 9. Bg5 {[%clk 0:02:47]}  h6 {[%clk 0:02:41]} 10. Bxf6 {[%clk 0:02:45]}  gxf6 {[%clk 0:02:42]} 11. O-O-O {[%clk 0:02:44]}  Bd7 {[%clk 0:02:40]} 12. Kb1 {[%clk 0:02:41]}  Bc6 {[%clk 0:02:39]} 13. Nd5 {[%clk 0:02:33]}  Bg7 {[%clk 0:02:26]} 14. Ne3 {[%clk 0:02:27]}  Qd7 {[%clk 0:02:18]} 15. Nf5 {[%clk 0:02:21]}  Bf8 {[%clk 0:02:18]} 16. Rhe1 {[%clk 0:02:18]}  Qc7 {[%clk 0:02:12]} 17. Ne3 {[%clk 0:02:00]}  Bg7 {[%clk 0:01:32]} 18. Nd5 {[%clk 0:01:54]}  Qd8 {[%clk 0:01:32]} 19. Nh4 {[%clk 0:01:41]}  e6 {[%clk 0:01:28]} 20. Nb6 {[%clk 0:01:36]}  Rb8 {[%clk 0:01:26]} 21. Nc4 {[%clk 0:01:34]}  O-O {[%clk 0:01:23]} 22. Nxd6 {[%clk 0:01:32]}  Qa5 {[%clk 0:01:13]} 23. Re3 {[%clk 0:01:28]}  Qh5 {[%clk 0:01:03]} 24. Rh3 {[%clk 0:01:03]}  Qg4 {[%clk 0:00:37]} 25. f3 {[%clk 0:00:42]}  Qg5 {[%clk 0:00:34]} 26. Nhf5 {[%clk 0:00:32]}  exf5 {[%clk 0:00:26]} 27. Rg3 {[%clk 0:00:31]}  fxe4 {[%clk 0:00:24]} 28. Rxg5 {[%clk 0:00:30]}  fxg5 {[%clk 0:00:25]} 29. Qb4 {[%clk 0:00:24]}  exf3 {[%clk 0:00:24]} 30. gxf3 {[%clk 0:00:24]}  Bxf3 {[%clk 0:00:21]} 31. Rf1 {[%clk 0:00:23]}  Be2 {[%clk 0:00:21]} 32. Re1 {[%clk 0:00:21]}  Bh5 {[%clk 0:00:21]} 33. h4 {[%clk 0:00:21]}  Rfd8 {[%clk 0:00:18]} 34. hxg5 {[%clk 0:00:18]}  Bf8 {[%clk 0:00:19]} 35. Qh4 {[%clk 0:00:16]}  Rxd6 {[%clk 0:00:18]} 36. Qxh5 {[%clk 0:00:16]}  Rbd8 {[%clk 0:00:19]} 37. a3 {[%clk 0:00:11]}  Rd5 {[%clk 0:00:16]} 38. Rg1 {[%clk 0:00:09]}  Bg7 {[%clk 0:00:17]} 39. Qh4 {[%clk 0:00:06]}  hxg5 {[%clk 0:00:16]} 40. Rxg5 {[%clk 0:00:07]}  Rxg5 {[%clk 0:00:15]} 41. Qxg5 {[%clk 0:00:08]}  Rd7 {[%clk 0:00:13]} 42. Qf5 {[%clk 0:00:08]}  Re7 {[%clk 0:00:14]} 43. c3 {[%clk 0:00:08]}  Be5 {[%clk 0:00:11]} 44. Ka2 {[%clk 0:00:08]}  f6 {[%clk 0:00:11]} 45. Qg6+ {[%clk 0:00:07]}  Kf8 {[%clk 0:00:11]} 46. a4 {[%clk 0:00:06]}  Rg7 {[%clk 0:00:12]} 47. Qf5 {[%clk 0:00:06]}  Re7 {[%clk 0:00:12]} 48. Kb3 {[%clk 0:00:05]}  Kf7 {[%clk 0:00:13]} 49. Qc8 {[%clk 0:00:04]}  Rc7 {[%clk 0:00:12]} 50. Qh3 {[%clk 0:00:03]}  Re7 {[%clk 0:00:13]} 51. Qh7+ {[%clk 0:00:04]}  Ke6 {[%clk 0:00:14]} 52. Qe4 {[%clk 0:00:04]}  Kf7 {[%clk 0:00:15]} 53. Qc4+ {[%clk 0:00:05]}  Kg7 {[%clk 0:00:14]} 54. a5 {[%clk 0:00:05]}  Rc7 {[%clk 0:00:14]} 55. Qg4+ {[%clk 0:00:06]}  Kf7 {[%clk 0:00:14]} 56. Qf5 {[%clk 0:00:07]}  Re7 {[%clk 0:00:13]} 57. Ka4 {[%clk 0:00:07]}  Rc7 {[%clk 0:00:13]} 58. Qh7+ {[%clk 0:00:07]}  Ke6 {[%clk 0:00:13]} 59. Qh5 {[%clk 0:00:07]}  Ke7 {[%clk 0:00:12]} 60. Qf5 {[%clk 0:00:07]}  Rc4+ {[%clk 0:00:12]} 61. Kb3 {[%clk 0:00:07]}  Rc7 {[%clk 0:00:13]} 62. c4 {[%clk 0:00:07]}  Rd7 {[%clk 0:00:12]} 63. Ka3 {[%clk 0:00:06]}  Rc7 {[%clk 0:00:06]} 64. b3 {[%clk 0:00:06]}  Rd7 {[%clk 0:00:07]} 65. Ka4 {[%clk 0:00:06]}  Rc7 {[%clk 0:00:07]} 66. Qh7+ {[%clk 0:00:06]}  Ke6 {[%clk 0:00:07]} 67. Qh3+ {[%clk 0:00:06]}  Ke7 {[%clk 0:00:07]} 68. Qd3 {[%clk 0:00:06]}  Rd7 {[%clk 0:00:08]} 69. Qh7+ {[%clk 0:00:07]}  Ke6 {[%clk 0:00:08]} 70. Qh3+ {[%clk 0:00:07]}  Ke7 {[%clk 0:00:08]} 71. b4 {[%clk 0:00:08]}  Rc7 {[%clk 0:00:07]} 72. c5 {[%clk 0:00:08]}  Rd7 {[%clk 0:00:07]} 73. Qh7+ {[%clk 0:00:08]}  Ke6 {[%clk 0:00:08]} 74. Qe4 {[%clk 0:00:08]}  Rc7 {[%clk 0:00:08]} 75. Qh1 {[%clk 0:00:07]}  f5 {[%clk 0:00:08]} 76. Qh6+ {[%clk 0:00:05]}  Bf6 {[%clk 0:00:08]} 77. Qh3 {[%clk 0:00:04]}  Rg7 {[%clk 0:00:07]} 78. Qe3+ {[%clk 0:00:04]}  Be5 {[%clk 0:00:07]} 79. Qd3 {[%clk 0:00:04]}  Rd7 {[%clk 0:00:07]} 80. Qc4+ {[%clk 0:00:04]}  Kf6 {[%clk 0:00:08]} 81. c6 {[%clk 0:00:04]}  bxc6 {[%clk 0:00:08]} 82. Qxa6 {[%clk 0:00:04]}  Rd6 {[%clk 0:00:08]} 83. Qc8 {[%clk 0:00:04]}  f4 {[%clk 0:00:08]} 84. a6 {[%clk 0:00:04]}  Bd4 {[%clk 0:00:07]} 85. Qh8+ {[%clk 0:00:02]}  Ke6 {[%clk 0:00:07]} 86. Qh6+ {[%clk 0:00:03]}  Ke5 {[%clk 0:00:07]} 87. Qg5+ {[%clk 0:00:03]}  Ke4 {[%clk 0:00:07]} 88. Qe7+ {[%clk 0:00:03]}  Kd5 {[%clk 0:00:06]} 89. Qf7+ {[%clk 0:00:04]}  Ke5 {[%clk 0:00:05]} 90. a7 {[%clk 0:00:04]}  Bxa7 {[%clk 0:00:05]} 91. Qxa7 {[%clk 0:00:05]}  f3 {[%clk 0:00:05]} 92. Qe7+ {[%clk 0:00:05]}  Re6 {[%clk 0:00:06]} 93. Qc5+ {[%clk 0:00:06]}  Kf4 {[%clk 0:00:05]} 94. Qc4+ {[%clk 0:00:06]}  Kf5 {[%clk 0:00:05]} 95. Qd3+ {[%clk 0:00:06]}  Kf4 {[%clk 0:00:05]} 96. Qd2+ {[%clk 0:00:06]}  Kf5 {[%clk 0:00:02]} 97. Qc2+ {[%clk 0:00:07]}  Kf4 {[%clk 0:00:02]} 98. Qf2 {[%clk 0:00:06]}  Re2 {[%clk 0:00:02]} 99. Qd4+ {[%clk 0:00:06]}  Kg3 {[%clk 0:00:03]} 100. Qg7+ {[%clk 0:00:06]}  Kf2 {[%clk 0:00:03]} 101. Qf6 {[%clk 0:00:06]}  Kg2 {[%clk 0:00:03]} 102. Qxc6 {[%clk 0:00:06]}  Kg3 {[%clk 0:00:02]} 103. Qg6+ {[%clk 0:00:06]}  Kf2 {[%clk 0:00:02]} 104. b5 {[%clk 0:00:06]}  Ke1 {[%clk 0:00:03]} 105. Qb1+ {[%clk 0:00:04]}  Kd2 {[%clk 0:00:03]} 106. Qb2+ {[%clk 0:00:04]}  Ke1 {[%clk 0:00:03]} 107. Qc1+ {[%clk 0:00:03]}  Kf2 {[%clk 0:00:04]} 108. b6 {[%clk 0:00:04]}  Kg2 {[%clk 0:00:04]} 109. Qg5+ {[%clk 0:00:04]}  Kh1 {[%clk 0:00:05]} 110. Qh5+ {[%clk 0:00:04]}  Kg2 {[%clk 0:00:05]} 111. Qg4+ {[%clk 0:00:04]}  Kf2 {[%clk 0:00:04]} 112. b7 {[%clk 0:00:04]}  Rb2 {[%clk 0:00:04]} 113. Qd4+ {[%clk 0:00:04]} 1-0


[Site "https://www.chess.com"]

[Event "Titled Tuesday Blitz March 01 Late 2022"]
[White "Gutenev, Alexander"]
[Black "Sjugirov, Sanan"]
[WhiteFideId "4195540"]
[BlackFideId "4189302"]
[WhiteElo "2403"]
[BlackElo "2602"]
[Result "1-0"]
[Round "02"]
[TimeControl "180+1"]
[Date "2022.03.01"]
[WhiteClock "0:01:01"]
[BlackClock "0:00:03"]

1. e4 {[%clk 0:03:00]}  e5 {[%clk 0:02:59]} 2. Nf3 {[%clk 0:03:00]}  Nc6 {[%clk 0:03:00]} 3. Bb5 {[%clk 0:03:00]}  a6 {[%clk 0:03:00]} 4. Ba4 {[%clk 0:03:00]}  Nf6 {[%clk 0:03:01]} 5. O-O {[%clk 0:03:01]}  d6 {[%clk 0:03:02]} 6. Re1 {[%clk 0:03:00]}  b5 {[%clk 0:02:58]} 7. Bb3 {[%clk 0:02:59]}  Bg4 {[%clk 0:02:58]} 8. c3 {[%clk 0:02:59]}  Be7 {[%clk 0:02:58]} 9. h3 {[%clk 0:02:58]}  Bh5 {[%clk 0:02:58]} 10. d3 {[%clk 0:02:59]}  O-O {[%clk 0:02:58]} 11. Nbd2 {[%clk 0:02:59]}  Na5 {[%clk 0:02:54]} 12. Bc2 {[%clk 0:02:59]}  c5 {[%clk 0:02:54]} 13. Nf1 {[%clk 0:02:58]}  Nc6 {[%clk 0:02:53]} 14. g4 {[%clk 0:02:53]}  Bg6 {[%clk 0:02:53]} 15. Ng3 {[%clk 0:02:53]}  Re8 {[%clk 0:02:49]} 16. Nf5 {[%clk 0:02:51]}  Bxf5 {[%clk 0:02:30]} 17. gxf5 {[%clk 0:02:51]}  d5 {[%clk 0:02:25]} 18. Kh2 {[%clk 0:02:50]}  c4 {[%clk 0:02:19]} 19. exd5 {[%clk 0:02:45]}  cxd3 {[%clk 0:02:04]} 20. Bxd3 {[%clk 0:02:15]}  Qxd5 {[%clk 0:01:57]} 21. Bc2 {[%clk 0:02:13]}  Qxd1 {[%clk 0:01:38]} 22. Rxd1 {[%clk 0:02:12]}  e4 {[%clk 0:01:32]} 23. Nd4 {[%clk 0:02:11]}  Nxd4 {[%clk 0:01:28]} 24. cxd4 {[%clk 0:02:10]}  Bd6+ {[%clk 0:01:25]} 25. Kg2 {[%clk 0:02:09]}  Nd5 {[%clk 0:01:16]} 26. Bb3 {[%clk 0:02:06]}  Ne7 {[%clk 0:01:14]} 27. Be3 {[%clk 0:01:48]}  Nxf5 {[%clk 0:01:13]} 28. Rac1 {[%clk 0:01:48]}  Rac8 {[%clk 0:01:09]} 29. Bd5 {[%clk 0:01:48]}  Nh4+ {[%clk 0:01:06]} 30. Kf1 {[%clk 0:01:47]}  Nf5 {[%clk 0:00:20]} 31. Ke2 {[%clk 0:01:44]}  a5 {[%clk 0:00:18]} 32. Rxc8 {[%clk 0:01:41]}  Rxc8 {[%clk 0:00:19]} 33. Bxe4 {[%clk 0:01:41]}  Nxe3 {[%clk 0:00:18]} 34. fxe3 {[%clk 0:01:41]}  g6 {[%clk 0:00:17]} 35. Bd5 {[%clk 0:01:36]}  Kf8 {[%clk 0:00:17]} 36. e4 {[%clk 0:01:36]}  Rc2+ {[%clk 0:00:17]} 37. Rd2 {[%clk 0:01:35]}  Rc1 {[%clk 0:00:12]} 38. e5 {[%clk 0:01:34]}  Bb4 {[%clk 0:00:12]} 39. Rd1 {[%clk 0:01:29]}  Rc2+ {[%clk 0:00:12]} 40. Kd3 {[%clk 0:01:29]}  Rxb2 {[%clk 0:00:11]} 41. Rf1 {[%clk 0:01:29]}  f5 {[%clk 0:00:07]} 42. exf6 {[%clk 0:01:28]}  Rd2+ {[%clk 0:00:08]} 43. Ke3 {[%clk 0:01:28]}  Rh2 {[%clk 0:00:07]} 44. Be6 {[%clk 0:01:27]}  Rc2 {[%clk 0:00:05]} 45. Ke4 {[%clk 0:01:26]}  Re2+ {[%clk 0:00:04]} 46. Kd5 {[%clk 0:01:25]}  Rc2 {[%clk 0:00:04]} 47. h4 {[%clk 0:01:19]}  Rc3 {[%clk 0:00:03]} 48. h5 {[%clk 0:01:16]}  Rg3 {[%clk 0:00:01]} 49. Rc1 {[%clk 0:01:13]}  Bc3 {[%clk 0:00:02]} 50. hxg6 {[%clk 0:01:12]}  hxg6 {[%clk 0:00:03]} 51. Rh1 {[%clk 0:01:11]}  Rg5+ {[%clk 0:00:03]} 52. Kd6 {[%clk 0:01:10]}  Rh5 {[%clk 0:00:04]} 53. Rg1 {[%clk 0:01:06]}  Bxd4 {[%clk 0:00:04]} 54. Rxg6 {[%clk 0:01:05]}  Bc5+ {[%clk 0:00:04]} 55. Kd7 {[%clk 0:01:05]}  Rh8 {[%clk 0:00:03]} 56. f7 {[%clk 0:01:01]} 1-0


[Site "https://www.chess.com"]

[Event "Titled Tuesday Blitz March 01 Late 2022"]
[White "Hakemi, Arman"]
[Black "Caruana, Fabiano"]
[WhiteFideId "22520805"]
[BlackFideId "2020009"]
[WhiteElo "2208"]
[BlackElo "2744"]
[Result "1-0"]
[Round "02"]
[TimeControl "180+1"]
[Date "2022.03.01"]
[WhiteClock "0:00:11"]
[BlackClock "0:00:03"]

1. e4 {[%clk 0:03:00]}  e6 {[%clk 0:03:00]} 2. d4 {[%clk 0:03:00]}  d5 {[%clk 0:03:01]} 3. Nc3 {[%clk 0:03:01]}  Bb4 {[%clk 0:03:01]} 4. exd5 {[%clk 0:03:01]}  exd5 {[%clk 0:03:00]} 5. Bd3 {[%clk 0:03:02]}  Nc6 {[%clk 0:02:59]} 6. Nf3 {[%clk 0:03:01]}  Nge7 {[%clk 0:02:58]} 7. O-O {[%clk 0:03:01]}  O-O {[%clk 0:02:58]} 8. a3 {[%clk 0:02:51]}  Bxc3 {[%clk 0:02:58]} 9. bxc3 {[%clk 0:02:51]}  Bf5 {[%clk 0:02:58]} 10. Rb1 {[%clk 0:02:50]}  b6 {[%clk 0:02:58]} 11. Re1 {[%clk 0:02:49]}  Qd7 {[%clk 0:02:56]} 12. a4 {[%clk 0:02:49]}  Rfe8 {[%clk 0:02:53]} 13. Ba3 {[%clk 0:02:48]}  Ng6 {[%clk 0:02:50]} 14. Qd2 {[%clk 0:02:40]}  Na5 {[%clk 0:02:41]} 15. Bb5 {[%clk 0:02:31]}  c6 {[%clk 0:02:39]} 16. Bd3 {[%clk 0:02:31]}  Be4 {[%clk 0:02:36]} 17. Ne5 {[%clk 0:02:20]}  Nxe5 {[%clk 0:02:34]} 18. dxe5 {[%clk 0:02:21]}  Bg6 {[%clk 0:02:06]} 19. f4 {[%clk 0:02:19]}  Rad8 {[%clk 0:02:00]} 20. Rf1 {[%clk 0:02:18]}  Bf5 {[%clk 0:01:56]} 21. Rbe1 {[%clk 0:02:16]}  Qe6 {[%clk 0:01:51]} 22. Qf2 {[%clk 0:02:05]}  Nc4 {[%clk 0:01:44]} 23. Bxc4 {[%clk 0:02:00]}  dxc4 {[%clk 0:01:45]} 24. Bd6 {[%clk 0:02:01]}  c5 {[%clk 0:01:43]} 25. h3 {[%clk 0:01:59]}  h5 {[%clk 0:01:42]} 26. Qf3 {[%clk 0:01:59]}  Qg6 {[%clk 0:01:38]} 27. Kh2 {[%clk 0:01:32]}  h4 {[%clk 0:01:38]} 28. Qf2 {[%clk 0:01:27]}  Qh5 {[%clk 0:01:38]} 29. Re3 {[%clk 0:01:23]}  Re6 {[%clk 0:01:36]} 30. Rfe1 {[%clk 0:01:22]}  Rde8 {[%clk 0:01:18]} 31. a5 {[%clk 0:01:20]}  Qh7 {[%clk 0:01:08]} 32. axb6 {[%clk 0:01:18]}  axb6 {[%clk 0:01:09]} 33. Rb1 {[%clk 0:01:18]}  Bxc2 {[%clk 0:01:05]} 34. Rxb6 {[%clk 0:01:18]}  Bd3 {[%clk 0:00:59]} 35. Rb7 {[%clk 0:01:05]}  Qh5 {[%clk 0:00:58]} 36. Rc7 {[%clk 0:01:03]}  Ra8 {[%clk 0:00:55]} 37. Qf3 {[%clk 0:00:59]}  Qxf3 {[%clk 0:00:54]} 38. Rxf3 {[%clk 0:01:00]}  Rg6 {[%clk 0:00:46]} 39. f5 {[%clk 0:00:55]}  Rg5 {[%clk 0:00:46]} 40. e6 {[%clk 0:00:55]}  fxe6 {[%clk 0:00:43]} 41. fxe6 {[%clk 0:00:56]}  Ra2 {[%clk 0:00:37]} 42. Kh1 {[%clk 0:00:30]}  Raxg2 {[%clk 0:00:31]} 43. Bh2 {[%clk 0:00:28]}  Re2 {[%clk 0:00:27]} 44. Bf4 {[%clk 0:00:10]}  Rg6 {[%clk 0:00:16]} 45. e7 {[%clk 0:00:07]}  Kh7 {[%clk 0:00:16]} 46. Re3 {[%clk 0:00:06]}  Rxe3 {[%clk 0:00:14]} 47. Bxe3 {[%clk 0:00:06]}  Re6 {[%clk 0:00:11]} 48. Bxc5 {[%clk 0:00:06]}  Re2 {[%clk 0:00:11]} 49. Rc8 {[%clk 0:00:05]}  Bg6 {[%clk 0:00:10]} 50. Rd8 {[%clk 0:00:05]}  Kh6 {[%clk 0:00:10]} 51. Rd4 {[%clk 0:00:05]}  Kg5 {[%clk 0:00:09]} 52. Rxc4 {[%clk 0:00:06]}  Be4+ {[%clk 0:00:08]} 53. Kg1 {[%clk 0:00:06]}  Bf3 {[%clk 0:00:07]} 54. Kf1 {[%clk 0:00:04]}  Re6 {[%clk 0:00:06]} 55. Rd4 {[%clk 0:00:03]}  Be2+ {[%clk 0:00:05]} 56. Kf2 {[%clk 0:00:04]}  Bh5 {[%clk 0:00:06]} 57. Rd5+ {[%clk 0:00:04]}  Kh6 {[%clk 0:00:05]} 58. Rd6 {[%clk 0:00:04]}  Rxd6 {[%clk 0:00:05]} 59. Bxd6 {[%clk 0:00:05]}  Be8 {[%clk 0:00:05]} 60. Ke3 {[%clk 0:00:06]}  Kg5 {[%clk 0:00:06]} 61. Be5 {[%clk 0:00:06]}  g6 {[%clk 0:00:05]} 62. c4 {[%clk 0:00:07]}  Kf5 {[%clk 0:00:05]} 63. Kd4 {[%clk 0:00:07]}  Ke6 {[%clk 0:00:05]} 64. c5 {[%clk 0:00:07]}  Kxe7 {[%clk 0:00:06]} 65. Bf4 {[%clk 0:00:08]}  Ke6 {[%clk 0:00:06]} 66. Bg5 {[%clk 0:00:08]}  Kf5 {[%clk 0:00:06]} 67. Bxh4 {[%clk 0:00:09]}  Kf4 {[%clk 0:00:06]} 68. Be7 {[%clk 0:00:08]}  Kg3 {[%clk 0:00:06]} 69. h4 {[%clk 0:00:09]}  Kf4 {[%clk 0:00:03]} 70. Kd5 {[%clk 0:00:09]}  Kf5 {[%clk 0:00:03]} 71. c6 {[%clk 0:00:09]}  Bf7+ {[%clk 0:00:03]} 72. Kd6 {[%clk 0:00:10]}  Be6 {[%clk 0:00:03]} 73. Bg5 {[%clk 0:00:09]}  Bc8 {[%clk 0:00:03]} 74. Kc7 {[%clk 0:00:10]}  Ba6 {[%clk 0:00:03]} 75. Kd8 {[%clk 0:00:10]}  Ke6 {[%clk 0:00:03]} 76. c7 {[%clk 0:00:11]} 1-0


[Site "https://www.chess.com"]